fUST/lending_fUST_20250825
["ID","MTS","AMOUNT","RATE_DAILY","PERIOD"]
[381137860,1756068639408,-500.0,0.00028573,5]
[381137861,1756068639418,-500.0,0.00028573,5]
[381137862,1756068639428,-500.86415045,0.00028573,5]
[381137863,1756068639437,-185.94231455,0.00028573,5]
[381137864,1756068639447,-500.0,0.00028573,5]
[381137865,1756068639456,-339.80844007,0.00028573,5]
[381137866,1756068639466,-500.0,0.00028573,5]
[381137867,1756068639476,-500.43555431,0.00028573,5]
[381137868,1756068639485,-500.0,0.00028573,5]
[381137869,1756068639495,-500.0,0.00028573,5]
[381137870,1756068639504,-501.60509658,0.00028573,5]
[381137871,1756068639514,-500.0,0.00028573,5]
[381137872,1756068639523,-500.0,0.00028573,5]
[381137873,1756068639533,-500.0,0.00028573,5]
[381137874,1756068639542,-500.0,0.00028573,5]
[381137875,1756068639551,-500.79919152,0.00028573,5]
[381137876,1756068639560,-496.57940651,0.00028573,5]
[381137877,1756068639570,-500.0,0.00028573,5]
[381137878,1756068639579,-500.0,0.00028573,5]
[381137879,1756068639589,-500.0,0.00028573,5]
[381137880,1756068639598,-500.0,0.00028573,5]
[381137881,1756068639607,-200.41332344,0.00028573,5]
[381137882,1756068639616,-500.50738808,0.00028573,5]
[381137883,1756068639627,-1824.42241189,0.00028608,2]
[381137884,1756068639636,-16010.19954012,0.00028628,2]
[381137885,1756068639645,-500.0,0.00028673,2]
[381137886,1756068639655,-3857.61,0.000287,7]
[381137887,1756068639665,-2020.23307259,0.00028963,2]
[381137888,1756068639674,-300.0,0.00029073,20]
[381137889,1756068639683,-300.0,0.00029075,20]
[381137890,1756068639692,-300.0,0.00029075,20]
[381137891,1756068639702,-300.0,0.00029084,20]
[381137892,1756068639710,-300.0,0.00029084,20]
[381137893,1756068639720,-1000.0,0.00029121,5]
[381137894,1756068639729,-500.0,0.00029121,5]
[381137895,1756068639738,-355.81162962,0.00029121,5]
[381137896,1756068639747,-159.44597578,0.00029121,5]
[381137897,1756068639756,-1000.0,0.00029121,5]
[381137898,1756068639765,-500.0,0.00029121,5]
[381137899,1756068639774,-500.0,0.00029121,5]
[381137900,1756068639783,-1000.0,0.00029121,5]
[381137901,1756068639793,-500.39064914,0.00029121,5]
[381137903,1756068639803,-395.06464608,0.00029121,5]
[381137905,1756068639812,-500.0,0.00029121,5]
[381137908,1756068639822,-450.73256847,0.00029221,2]
[381137911,1756068639831,-200.29767262,0.00029396,11]
[381137914,1756068639842,-2020.23307259,0.00029509,2]
[381137917,1756068639851,-1824.42241189,0.00029539,2]
[381137920,1756068639860,-943.1134774,0.00029549,2]
[381137923,1756068639870,-1500.0,0.00029668,5]
[381137926,1756068639879,-1500.0,0.00029668,5]
[381137929,1756068639888,-1000.0,0.00029668,5]
[381137932,1756068639897,-335.06531275,0.00029805,2]
[381137935,1756068639906,-500.0,0.00029873,5]
[381137939,1756068639916,-500.0,0.00029873,5]
[381137943,1756068639925,-12064.18,0.00029877,3]
[381137947,1756068639934,-6032.08,0.00029877,3]
[381137949,1756068639943,-3016.04,0.00029877,3]
[381137952,1756068639952,-1508.02,0.00029877,3]
[381137955,1756068639961,-754.02,0.00029877,3]
[381137958,1756068639970,-377.0,0.00029877,3]
[381137961,1756068639979,-323.5,0.00029877,3]
[381137964,1756068639988,-10300.22988234,0.00029954,2]
[381137966,1756068639997,-3648.84482378,0.0002997,2]
[381137968,1756068640010,-151.0,0.00029972,2]
[381137970,1756068640019,-500.0,0.00029972,2]
[381137972,1756068640028,-500.0,0.00029972,2]
[381137974,1756068640041,-500.0,0.00029972,2]
[381137976,1756068640052,-500.0,0.00029972,2]
[381137978,1756068640061,-500.0,0.00029972,2]
[381137980,1756068640071,-500.0,0.00029972,2]
[381137982,1756068640081,-500.0,0.00029972,2]
[381137984,1756068640092,-500.0,0.00029972,2]
[381137986,1756068640101,-500.0,0.00029972,2]
[381137988,1756068640111,-500.0,0.00029972,2]
[381137990,1756068640123,-500.0,0.00029972,2]
[381137992,1756068640133,-500.0,0.00029972,2]
[381137994,1756068640142,-281.9163452,0.00029972,2]
[381137996,1756068640151,-500.0,0.00029973,5]
[381137998,1756068640160,-501.9113435,0.00029973,5]
[381138000,1756068640170,-207.4965436,0.00029973,5]
[381138002,1756068640179,-500.0,0.00029973,5]
[381138004,1756068640189,-169.58929109,0.00029973,5]
[381138006,1756068640198,-3648.84482378,0.0002998,2]
[381138008,1756068640207,-100000.0,0.0002999,2]
[381138010,1756068640217,-259.01513167,0.00030027,2]
[381138012,1756068640226,-2020.23307259,0.00030054,2]
[381138014,1756068640236,-1824.42241189,0.00030206,2]
[381138016,1756068640245,-2000.0,0.00030216,5]
[381138017,1756068640254,-2000.0,0.00030216,5]
[381138018,1756068640264,-514.21672685,0.00030421,5]
[381138019,1756068640273,-160.0,0.0003045,2]
[381138020,1756068640282,-1824.42241189,0.00030453,2]
[381138021,1756068640292,-500.36952971,0.00030473,5]
[381138022,1756068640301,-21272.31892673,0.00030473,2]
[381138023,1756068640311,-200.0,0.0003049,2]
[381138025,1756068640320,-552.79631952,0.00030517,2]
[381138026,1756068640330,-1000.0,0.00030521,5]
[381138027,1756068640339,-10982.61707,0.00030587,2]
[381138028,1756068640348,-75007.39683503,0.00030591,20]
[381138029,1756068640358,-2020.23307259,0.000306,2]
[381138030,1756068640367,-4422.615882,0.00030607,2]
[381138031,1756068640377,-1217.2886772,0.00030607,2]
[381138032,1756068640386,-405.7628923,0.00030607,2]
[381138033,1756068640396,-154.229761,0.00030671,20]
[381138034,1756068640405,-3648.84482378,0.0003068,2]
[381138035,1756068640415,-169.08,0.000307,7]
[381138036,1756068640424,-14108.9,0.000307,7]
[381138037,1756068640435,-160.0,0.000307,7]
[381138038,1756068640443,-376.22310801,0.000307,7]
[381138039,1756068640453,-844.67759735,0.000307,7]
[381138040,1756068640462,-154.229761,0.00030707,20]
[381138041,1756068640471,-300.0,0.00030723,20]
[381138042,1756068640480,-300.0,0.00030723,20]
[381138043,1756068640490,-300.0,0.00030723,20]
[381138044,1756068640499,-300.0,0.00030723,20]
[381138045,1756068640507,-300.0,0.00030723,20]
[381138046,1756068640517,-300.0,0.00030723,20]
[381138047,1756068640526,-300.0,0.00030723,20]
[381138048,1756068640535,-300.0,0.00030723,20]
[381138049,1756068640545,-300.0,0.00030723,20]
[381138050,1756068640554,-300.0,0.00030723,20]
[381138051,1756068640563,-300.0,0.00030723,20]
[381138052,1756068640573,-300.0,0.00030723,20]
[381138053,1756068640582,-548.134039,0.00030741,2]
[381138054,1756068640593,-154.229761,0.00030742,20]
[381138055,1756068640602,-1500.0,0.00030764,5]
[381138056,1756068640611,-2081.83210946,0.00030764,5]
[381138057,1756068640620,-420.0,0.00030768,2]
[381138058,1756068640629,-388.0,0.00030769,2]
[381138059,1756068640639,-260.0,0.00030998,2]
[381138060,1756068640648,-151.0,0.00031,120]
[381138061,1756068640657,-160.0,0.00031046,2]
[381138062,1756068640666,-232.42214577,0.00031067,2]
[381138063,1756068640676,-376.22310801,0.00031067,2]
[381138064,1756068640686,-160.0,0.00031067,2]
[381138065,1756068640695,-160.0,0.00031067,2]
[381138066,1756068640704,-217.07852671,0.00031067,2]
[381138067,1756068640714,-1500.0,0.00031068,5]
[381138068,1756068640724,-160.0,0.00031079,2]
[381138069,1756068640734,-200.29767262,0.00031123,15]
[381138070,1756068640743,-3857.61,0.000312,7]
[381138071,1756068640752,-360.0,0.00031546,2]
[381138072,1756068640762,-2000.0,0.00031616,5]
[381138073,1756068640771,-814.75400889,0.00031652,2]
[381138074,1756068640780,-154.229761,0.00031746,2]
[381138075,1756068640789,-154.229761,0.00031995,2]
[381138076,1756068640799,-460.0,0.00032094,2]
[381138077,1756068640808,-2500.0,0.00032164,5]
[381138078,1756068640817,-1824.42241189,0.0003252,2]
[381138079,1756068640826,-1217.2886772,0.00032536,2]
[381138081,1756068640835,-405.7628923,0.00032536,2]
[381138082,1756068640846,-5000.0,0.00032556,4]
[381138083,1756068640855,-4422.615882,0.0003258,2]
[381138084,1756068640865,-560.0,0.00032642,2]
[381138085,1756068640874,-10982.61707,0.00032702,2]
[381138086,1756068640883,-2040.75589739,0.00032712,5]
[381138087,1756068640893,-275.0,0.00032731,7]
[381138088,1756068640902,-275.0,0.00032772,7]
[381138089,1756068640911,-275.0,0.00032804,7]
[381138090,1756068640921,-200.29767262,0.00032849,19]
[381138091,1756068640930,-200.29767263,0.00032849,19]
[381138092,1756068640939,-500.0,0.00032876,120]
[381138093,1756068640948,-151.0,0.0003299,7]
[381138094,1756068640957,-151.0,0.0003299,7]
[381138095,1756068640967,-151.0,0.0003299,7]
[381138096,1756068640976,-233.734865,0.0003299,7]
[381138097,1756068640985,-233.734865,0.0003299,7]
[381138098,1756068640994,-233.734865,0.0003299,7]
[381138099,1756068641003,-233.734865,0.0003299,7]
[381138100,1756068641012,-151.0,0.0003299,7]
[381138101,1756068641022,-151.0,0.0003299,7]
[381138102,1756068641031,-163.353797,0.0003299,7]
[381138103,1756068641044,-163.353797,0.0003299,7]
[381138104,1756068641053,-163.353797,0.0003299,7]
[381138105,1756068641062,-151.0,0.0003299,7]
[381138106,1756068641071,-163.353797,0.0003299,7]
[381138107,1756068641080,-151.0,0.0003299,7]
[381138108,1756068641090,-151.0,0.0003299,7]
[381138109,1756068641100,-151.0,0.0003299,7]
[381138110,1756068641110,-266.25644,0.0003299,7]
[381138111,1756068641119,-266.25644,0.0003299,7]
[381138112,1756068641129,-151.0,0.0003299,7]
[381138113,1756068641139,-266.25644,0.0003299,7]
[381138114,1756068641148,-266.25644,0.0003299,7]
[381138115,1756068641158,-151.0,0.0003299,7]
[381138116,1756068641167,-151.0,0.0003299,7]
[381138117,1756068641175,-151.0,0.0003299,7]
[381138118,1756068641191,-151.0,0.0003299,7]
[381138119,1756068641201,-151.0,0.0003299,7]
[381138120,1756068641210,-151.0,0.0003299,7]
[381138121,1756068641219,-1824.42241189,0.0003299,2]
[381138122,1756068641229,-29151.681907,0.00033,9]
[381138123,1756068641239,-5205.84,0.00033,14]
[381138124,1756068641248,-151.0,0.00033,7]
[381138125,1756068641257,-151.0,0.00033,7]
[381138126,1756068641266,-151.0,0.00033,7]
[381138127,1756068641275,-241.736049,0.00033,7]
[381138128,1756068641284,-151.0,0.00033,7]
[381138129,1756068641293,-241.736049,0.00033,7]
[381138130,1756068641302,-195.30278,0.00033,7]
[381138131,1756068641312,-241.736049,0.00033,7]
[381138132,1756068641321,-241.736049,0.00033,7]
[381138133,1756068641330,-151.0,0.00033,7]
[381138134,1756068641339,-151.0,0.00033,7]
[381138135,1756068641348,-151.0,0.00033,7]
[381138136,1756068641357,-151.0,0.00033,7]
[381138137,1756068641366,-367.790494,0.00033,7]
[381138138,1756068641375,-567.367118,0.00033,7]
[381138139,1756068641385,-367.790494,0.00033,7]
[381138140,1756068641394,-567.367118,0.00033,7]
[381138141,1756068641403,-367.790494,0.00033,7]
[381138142,1756068641412,-567.367118,0.00033,7]
[381138143,1756068641423,-367.790494,0.00033,7]
[381138144,1756068641432,-567.367118,0.00033,7]
[381138145,1756068641441,-151.0,0.00033,7]
[381138146,1756068641451,-151.0,0.00033,7]
[381138147,1756068641460,-151.0,0.00033,7]
[381138148,1756068641470,-423.645617,0.00033,7]
[381138149,1756068641479,-151.0,0.00033,7]
[381138150,1756068641489,-423.645617,0.00033,7]
[381138151,1756068641498,-423.645617,0.00033,7]
[381138152,1756068641507,-423.645617,0.00033,7]
[381138153,1756068641516,-256.454979,0.00033,7]
[381138154,1756068641526,-256.454979,0.00033,7]
[381138155,1756068641535,-151.0,0.00033,7]
[381138156,1756068641545,-382.279792,0.00033,7]
[381138157,1756068641554,-256.454979,0.00033,7]
[381138158,1756068641563,-151.0,0.00033,7]
[381138159,1756068641573,-382.279792,0.00033,7]
[381138160,1756068641583,-256.454979,0.00033,7]
[381138161,1756068641593,-382.279792,0.00033,7]
[381138162,1756068641602,-382.279792,0.00033,7]
[381138163,1756068641611,-151.0,0.00033,7]
[381138164,1756068641621,-151.0,0.00033,7]
[381138165,1756068641630,-949.174368,0.00033,7]
[381138166,1756068641639,-949.174368,0.00033,7]
[381138167,1756068641649,-949.174368,0.00033,7]
[381138168,1756068641658,-949.174368,0.00033,7]
[381138169,1756068641667,-151.0,0.00033,7]
[381138170,1756068641677,-151.0,0.00033,7]
[381138171,1756068641687,-151.0,0.00033,7]
[381138172,1756068641696,-630.704233,0.00033,7]
[381138173,1756068641705,-630.704233,0.00033,7]
[381138174,1756068641714,-630.704233,0.00033,7]
[381138175,1756068641723,-630.704233,0.00033,7]
[381138176,1756068641733,-193.94553,0.00033,7]
[381138177,1756068641742,-151.0,0.00033,7]
[381138178,1756068641751,-151.0,0.00033,7]
[381138179,1756068641760,-151.0,0.00033,7]
[381138180,1756068641769,-151.0,0.00033,7]
[381138181,1756068641778,-151.211758,0.00033,7]
[381138182,1756068641787,-151.0,0.00033,7]
[381138183,1756068641797,-151.0,0.00033,7]
[381138184,1756068641806,-193.179097,0.00033,7]
[381138185,1756068641816,-151.0,0.00033,7]
[381138186,1756068641825,-151.0,0.00033,7]
[381138187,1756068641834,-151.0,0.00033,7]
[381138188,1756068641845,-151.0,0.00033,7]
[381138189,1756068641854,-151.0,0.00033,7]
[381138190,1756068641863,-151.0,0.00033,7]
[381138191,1756068641873,-151.0,0.00033,7]
[381138192,1756068641882,-324.074455,0.00033165,2]
[381138193,1756068641892,-660.0,0.0003319,2]
[381138194,1756068641902,-587.0,0.00033212,2]
[381138195,1756068641912,-275.0,0.00033514,2]
[381138196,1756068641921,-275.0,0.00033544,2]
[381138197,1756068641931,-1824.42241189,0.0003359,2]
[381138198,1756068641940,-14108.9,0.000336,14]
[381138199,1756068641950,-151.0,0.000336,7]
[381138200,1756068641959,-151.0,0.000336,7]
[381138201,1756068641969,-3857.61,0.000336,7]
[381138202,1756068641978,-151.0,0.000336,7]
[381138203,1756068641988,-151.0,0.000336,7]
[381138204,1756068641997,-151.0,0.000336,7]
[381138205,1756068642007,-151.0,0.000336,7]
[381138206,1756068642016,-152.362666,0.000336,7]
[381138207,1756068642026,-151.0,0.000336,7]
[381138208,1756068642036,-151.0,0.000336,7]
[381138209,1756068642048,-151.0,0.000336,7]
[381138210,1756068642057,-151.0,0.000336,7]
[381138211,1756068642067,-151.0,0.000336,7]
[381138212,1756068642077,-151.0,0.000336,7]
[381138213,1756068642087,-844.67759735,0.000336,7]
[381138214,1756068642098,-275.0,0.00033602,2]
[381138215,1756068642107,-275.0,0.0003368,2]
[381138216,1756068642119,-199.0,0.0003369,120]
[381138217,1756068642128,-620.0,0.00033738,2]
[381138218,1756068642138,-199.0,0.0003379,120]
[381138219,1756068642147,-275.0,0.00033799,2]
[381138220,1756068642157,-169.08,0.000338,7]
[381138221,1756068642166,-275.0,0.00033847,2]
[381138222,1756068642175,-275.0,0.00033938,7]
[381138223,1756068642185,-275.0,0.00033945,2]
[381138224,1756068642194,-275.0,0.00033957,2]
[381138225,1756068642204,-275.0,0.00033962,2]
[381138226,1756068642213,-275.0,0.00033982,2]
[381138227,1756068642222,-275.0,0.00034076,2]
[381138228,1756068642234,-151.0,0.000341,15]
[381138229,1756068642243,-548.134039,0.00034166,2]
[381138230,1756068642252,-151.0,0.000342,120]
[381138231,1756068642261,-275.0,0.00034291,2]
[381138232,1756068642271,-160.0,0.00034297,2]
[381138233,1756068642280,-844.67759735,0.00034398,2]
[381138234,1756068642290,-151.0,0.00034452,7]
[381138235,1756068642299,-151.0,0.00034452,7]
[381138236,1756068642308,-1217.2886772,0.00034465,2]
[381138237,1756068642317,-405.7628923,0.00034465,2]
[381138238,1756068642326,-275.0,0.00034493,2]
[381138239,1756068642335,-500.0,0.0003452,120]
[381138240,1756068642346,-4422.615882,0.00034552,2]
[381138241,1756068642355,-200.29767262,0.00034576,23]
[381138242,1756068642365,-1824.42241189,0.0003459,2]
[381138243,1756068642374,-5205.84,0.000346,14]
[381138244,1756068642384,-275.0,0.0003461,7]
[381138245,1756068642393,-10982.61707,0.00034818,2]
[381138246,1756068642402,-275.0,0.0003484,2]
[381138247,1756068642412,-275.0,0.00034977,7]
[381138248,1756068642421,-151.0,0.00035,20]
[381138249,1756068642431,-277.0,0.00035237,2]
[381138250,1756068642440,-275.0,0.00035278,2]
[381138251,1756068642449,-275.0,0.00035555,7]
[381138252,1756068642458,-153.0,0.00035572,30]
[381138253,1756068642468,-153.0,0.00035572,30]
[381138254,1756068642477,-153.0,0.00035572,30]
[381138255,1756068642486,-153.0,0.00035572,30]
[381138256,1756068642496,-14108.9,0.000356,14]
[381138257,1756068642506,-3857.61,0.000356,7]
[381138258,1756068642515,-275.0,0.00035721,2]
[381138259,1756068642524,-275.0,0.00035827,2]
[381138260,1756068642533,-823.0,0.0003585,2]
[381138261,1756068642543,-169.08,0.000359,7]
[381138262,1756068642552,-151.0,0.000359,16]
[381138263,1756068642561,-500.0,0.00036164,120]
[381138264,1756068642570,-200.29767262,0.00036302,26]
[381138265,1756068642579,-1217.2886772,0.00036393,2]
[381138266,1756068642589,-405.7628923,0.00036393,2]
[381138267,1756068642598,-4422.615882,0.00036525,2]
[381138268,1756068642607,-151.0,0.000368,13]
[381138269,1756068642616,-10982.61707,0.00036933,2]
[381138270,1756068642626,-1824.42241189,0.0003739,3]
[381138271,1756068642636,-5205.84,0.000374,14]
[381138272,1756068642645,-151.0,0.000375,120]
[381138273,1756068642655,-548.134039,0.0003759,2]
[381138274,1756068642664,-151.0,0.000376,13]
[381138275,1756068642673,-500.0,0.00037703,7]
[381138276,1756068642683,-500.0,0.00037808,120]
[381138277,1756068642693,-72076.76877949,0.0003801,5]
[381138278,1756068642702,-151.0,0.0003801,30]
[381138279,1756068642712,-154.764557,0.0003801,30]
[381138280,1756068642722,-154.764557,0.0003801,30]
[381138281,1756068642731,-154.764557,0.0003801,30]
[381138282,1756068642740,-154.764557,0.0003801,30]
[381138283,1756068642750,-151.0,0.0003801,30]
[381138284,1756068642759,-151.0,0.0003801,30]
[381138285,1756068642768,-151.0,0.0003801,30]
[381138286,1756068642777,-151.0,0.0003801,30]
[381138287,1756068642786,-151.751284,0.0003801,30]
[381138288,1756068642795,-151.0,0.0003801,30]
[381138289,1756068642805,-151.0,0.0003801,30]
[381138290,1756068642814,-151.0,0.0003801,30]
[381138291,1756068642996,-151.0,0.0003801,30]
[381138292,1756068643006,-151.0,0.0003801,30]
[381138293,1756068643015,-153.007926,0.0003801,30]
[381138294,1756068643024,-153.007926,0.0003801,30]
[381138295,1756068643033,-153.007926,0.0003801,30]
[381138296,1756068643047,-153.007926,0.0003801,30]
[381138297,1756068643056,-160.37027,0.0003801,30]
[381138298,1756068643065,-160.37027,0.0003801,30]
[381138299,1756068643074,-160.37027,0.0003801,30]
[381138300,1756068643085,-160.37027,0.0003801,30]
[381138301,1756068643094,-151.0,0.0003801,30]
[381138302,1756068643104,-151.0,0.0003801,30]
[381138303,1756068643115,-151.0,0.0003801,30]
[381138307,1756068643332,-151.0,0.0003801,30]
[381138308,1756068643342,-312.569554,0.0003801,30]
[381138309,1756068643352,-312.569554,0.0003801,30]
[381138310,1756068643361,-312.569554,0.0003801,30]
[381138311,1756068643371,-312.569554,0.0003801,30]
[381138312,1756068643380,-151.0,0.0003801,30]
[381138313,1756068643389,-151.0,0.0003801,30]
[381138315,1756068643399,-151.0,0.0003801,30]
[381138316,1756068643409,-151.0,0.0003801,30]
[381138317,1756068643418,-151.0,0.0003801,30]
[381138318,1756068643427,-151.0,0.0003801,30]
[381138319,1756068643436,-151.0,0.0003801,30]
[381138320,1756068643446,-151.0,0.0003801,30]
[381138321,1756068643456,-151.0,0.0003801,30]
[381138322,1756068643465,-151.0,0.0003801,30]
[381138323,1756068643474,-160.658675,0.0003801,30]
[381138324,1756068643484,-160.658675,0.0003801,30]
[381138325,1756068643493,-160.658675,0.0003801,30]
[381138326,1756068643502,-151.0,0.0003801,30]
[381138327,1756068643511,-151.0,0.0003801,30]
[381138328,1756068643520,-160.658675,0.0003801,30]
[381138329,1756068643529,-151.0,0.0003801,30]
[381138330,1756068643538,-151.0,0.0003801,30]
[381138331,1756068643548,-151.0,0.0003801,30]
[381138332,1756068643557,-151.0,0.0003801,30]
[381138333,1756068643566,-151.0,0.0003801,30]
[381138334,1756068643575,-151.0,0.0003801,30]
[381138335,1756068643584,-151.0,0.0003801,30]
[381138336,1756068643595,-151.0,0.0003801,30]
[381138337,1756068643605,-200.29767262,0.00038029,30]
[381138338,1756068643614,-500.0,0.00038073,2]
[381138339,1756068643623,-151.0,0.000385,13]
[381138340,1756068643632,-1080.06800975,0.00038621,2]
[381138341,1756068643642,-1152.0,0.00038698,5]
[381138342,1756068643651,-151.0,0.0003889,30]
[381138343,1756068643660,-151.0,0.0003889,30]
[381138344,1756068643670,-99835.25668759,0.000389,60]
[381138345,1756068643679,-151.0,0.000389,30]
[381138346,1756068643688,-151.0,0.000389,14]
[381138347,1756068643697,-151.0,0.000389,30]
[381138348,1756068643707,-151.0,0.000389,30]
[381138349,1756068643715,-151.0,0.000389,30]
[381138350,1756068643725,-151.0,0.000389,30]
[381138351,1756068643734,-151.0,0.000389,30]
[381138352,1756068643743,-151.0,0.000389,30]
[381138353,1756068643752,-151.0,0.000389,30]
[381138354,1756068643761,-151.0,0.000389,30]
[381138355,1756068643770,-183.054358,0.000389,30]
[381138356,1756068643780,-151.0,0.000389,30]
[381138357,1756068643789,-151.45715,0.000389,30]
[381138358,1756068643799,-151.0,0.000389,30]
[381138359,1756068643808,-151.0,0.000389,30]
[381138360,1756068643817,-151.0,0.000389,30]
[381138361,1756068643826,-151.0,0.000389,30]
[381138362,1756068643835,-151.0,0.000389,30]
[381138363,1756068643845,-151.0,0.000389,30]
[381138364,1756068643854,-151.0,0.000389,30]
[381138365,1756068643864,-233.734865,0.000389,30]
[381138366,1756068643874,-233.734865,0.000389,30]
[381138367,1756068643883,-233.734865,0.000389,30]
[381138368,1756068643892,-233.734865,0.000389,30]
[381138369,1756068643902,-151.0,0.000389,30]
[381138370,1756068643911,-151.0,0.000389,30]
[381138371,1756068643920,-163.353797,0.000389,30]
[381138372,1756068643930,-163.353797,0.000389,30]
[381138373,1756068643939,-163.353797,0.000389,30]
[381138374,1756068643948,-151.0,0.000389,30]
[381138375,1756068643957,-163.353797,0.000389,30]
[381138376,1756068643966,-151.000001,0.000389,30]
[381138377,1756068643975,-151.0,0.000389,30]
[381138378,1756068643984,-233.394478,0.000389,30]
[381138379,1756068643994,-266.25644,0.000389,30]
[381138380,1756068644003,-266.25644,0.000389,30]
[381138381,1756068644013,-151.0,0.000389,30]
[381138382,1756068644022,-266.25644,0.000389,30]
[381138383,1756068644031,-266.25644,0.000389,30]
[381138384,1756068644044,-151.0,0.000389,30]
[381138385,1756068644054,-151.0,0.000389,30]
[381138386,1756068644063,-151.0,0.000389,30]
[381138387,1756068644072,-151.0,0.000389,30]
[381138388,1756068644082,-241.736049,0.000389,30]
[381138389,1756068644092,-151.0,0.000389,30]
[381138390,1756068644102,-241.736049,0.000389,30]
[381138391,1756068644112,-241.736049,0.000389,30]
[381138392,1756068644123,-241.736049,0.000389,30]
[381138393,1756068644133,-151.0,0.000389,30]
[381138394,1756068644143,-151.0,0.000389,30]
[381138395,1756068644152,-151.0,0.000389,30]
[381138396,1756068644161,-151.0,0.000389,30]
[381138397,1756068644170,-151.0,0.000389,30]
[381138398,1756068644179,-151.0,0.000389,30]
[381138399,1756068644188,-181.84,0.000389,30]
[381138400,1756068644197,-151.0,0.000389,30]
[381138401,1756068644207,-367.790494,0.000389,30]
[381138402,1756068644217,-567.367118,0.000389,30]
[381138403,1756068644226,-367.790494,0.000389,30]
[381138404,1756068644235,-567.367118,0.000389,30]
[381138405,1756068644245,-367.790494,0.000389,30]
[381138406,1756068644255,-567.367118,0.000389,30]
[381138407,1756068644264,-367.790494,0.000389,30]
[381138408,1756068644273,-567.367118,0.000389,30]
[381138409,1756068644283,-151.0,0.000389,30]
[381138410,1756068644292,-151.0,0.000389,30]
[381138411,1756068644302,-151.0,0.000389,30]
[381138412,1756068644311,-423.645617,0.000389,30]
[381138413,1756068644320,-151.0,0.000389,30]
[381138414,1756068644329,-423.645617,0.000389,30]
[381138415,1756068644339,-423.645617,0.000389,30]
[381138416,1756068644350,-423.645617,0.000389,30]
[381138417,1756068644359,-256.454979,0.000389,30]
[381138418,1756068644368,-256.454979,0.000389,30]
[381138419,1756068644378,-382.279792,0.000389,30]
[381138420,1756068644388,-256.454979,0.000389,30]
[381138421,1756068644397,-382.279792,0.000389,30]
[381138422,1756068644406,-256.454979,0.000389,30]
[381138423,1756068644415,-382.279792,0.000389,30]
[381138424,1756068644425,-382.279792,0.000389,30]
[381138425,1756068644434,-151.0,0.000389,30]
[381138426,1756068644443,-151.0,0.000389,30]
[381138427,1756068644452,-151.0,0.000389,30]
[381138428,1756068644461,-949.174368,0.000389,30]
[381138429,1756068644471,-949.174368,0.000389,30]
[381138430,1756068644480,-949.174368,0.000389,30]
[381138431,1756068644489,-949.174368,0.000389,30]
[381138432,1756068644497,-151.0,0.000389,30]
[381138433,1756068644507,-151.0,0.000389,30]